[Event "Titled Tuesday Blitz May 9 Early 2023"]
[White "Hayrapetyan, Hovik"]
[Black "Dudzinski, Pawel"]
[WhiteFideId "13302639"]
[BlackFideId "1117890"]
[WhiteElo "2348"]
[BlackElo "2099"]
[Result "1-0"]
[Round "01"]
[TimeControl "180+2"]
[Date "2023.05.09"]
[WhiteClock "0:00:02"]
[BlackClock "0:00:12"]

1. d4 {[%clk 0:02:53]}  d5 {[%clk 0:02:58]} 2. c4 {[%clk 0:02:50]}  c6 {[%clk 0:02:53]} 3. Nf3 {[%clk 0:02:48]}  e6 {[%clk 0:02:53]} 4. e3 {[%clk 0:02:45]}  f5 {[%clk 0:02:53]} 5. g4 {[%clk 0:02:10]}  Nf6 {[%clk 0:02:51]} 6. gxf5 {[%clk 0:02:06]}  exf5 {[%clk 0:02:52]} 7. Nc3 {[%clk 0:01:59]}  Nbd7 {[%clk 0:02:37]} 8. cxd5 {[%clk 0:01:58]}  Nxd5 {[%clk 0:02:37]} 9. Nxd5 {[%clk 0:01:54]}  cxd5 {[%clk 0:02:38]} 10. Qb3 {[%clk 0:01:50]}  Nf6 {[%clk 0:02:34]} 11. Ne5 {[%clk 0:01:51]}  a6 {[%clk 0:02:30]} 12. Bd2 {[%clk 0:01:34]}  Bd6 {[%clk 0:02:30]} 13. Bg2 {[%clk 0:01:09]}  Bxe5 {[%clk 0:02:21]} 14. dxe5 {[%clk 0:01:10]}  Ne4 {[%clk 0:02:20]} 15. Bb4 {[%clk 0:01:04]}  Be6 {[%clk 0:02:19]} 16. O-O-O {[%clk 0:00:36]}  Qc7+ {[%clk 0:02:09]} 17. Kb1 {[%clk 0:00:33]}  Qxe5 {[%clk 0:02:08]} 18. Rhf1 {[%clk 0:00:16]}  Kf7 {[%clk 0:01:33]} 19. f3 {[%clk 0:00:15]}  Nf6 {[%clk 0:00:53]} 20. Qa3 {[%clk 0:00:15]}  Qxh2 {[%clk 0:00:46]} 21. Bh1 {[%clk 0:00:14]}  Rac8 {[%clk 0:00:44]} 22. Bc3 {[%clk 0:00:09]}  Rhd8 {[%clk 0:00:38]} 23. Ka1 {[%clk 0:00:04]}  Qd6 {[%clk 0:00:32]} 24. Qa4 {[%clk 0:00:03]}  Qc6 {[%clk 0:00:33]} 25. Qh4 {[%clk 0:00:02]}  Bd7 {[%clk 0:00:20]} 26. Bd4 {[%clk 0:00:01]}  Kg8 {[%clk 0:00:18]} 27. Rg1 {[%clk 0:00:01]}  Kh8 {[%clk 0:00:16]} 28. a3 {[%clk 0:00:02]}  Rf8 {[%clk 0:00:16]} 29. Rd2 {[%clk 0:00:01]}  Be8 {[%clk 0:00:16]} 30. Rh2 {[%clk 0:00:01]}  h6 {[%clk 0:00:13]} 31. Qxh6+ {[%clk 0:00:01]}  gxh6 {[%clk 0:00:12]} 32. Rxh6# {[%clk 0:00:02]} 1-0


[Site "https://www.chess.com"]

[Event "Titled Tuesday Blitz May 9 Early 2023"]
[White "Rios Escobar, Adan"]
[Black "Ohanyan, Emin"]
[WhiteFideId "3403645"]
[BlackFideId "13312022"]
[WhiteElo "2441"]
[BlackElo "2411"]
[Result "0-1"]
[Round "01"]
[TimeControl "180+2"]
[Date "2023.05.09"]
[WhiteClock "0:00:00"]
[BlackClock "0:00:45"]

1. d4 {[%clk 0:02:58]}  d5 {[%clk 0:02:59]} 2. g3 {[%clk 0:02:58]}  g6 {[%clk 0:02:59]} 3. Nf3 {[%clk 0:02:54]}  Nf6 {[%clk 0:02:58]} 4. Bg2 {[%clk 0:02:55]}  Bg7 {[%clk 0:02:58]} 5. c4 {[%clk 0:02:55]}  c6 {[%clk 0:02:58]} 6. cxd5 {[%clk 0:02:55]}  cxd5 {[%clk 0:02:58]} 7. Nc3 {[%clk 0:02:55]}  O-O {[%clk 0:02:58]} 8. Ne5 {[%clk 0:02:56]}  Nc6 {[%clk 0:02:59]} 9. O-O {[%clk 0:02:55]}  Ne4 {[%clk 0:02:59]} 10. Nxc6 {[%clk 0:02:46]}  bxc6 {[%clk 0:03:00]} 11. Nxe4 {[%clk 0:02:28]}  dxe4 {[%clk 0:03:01]} 12. Bxe4 {[%clk 0:02:28]}  Bh3 {[%clk 0:03:00]} 13. Re1 {[%clk 0:02:24]}  Qxd4 {[%clk 0:02:55]} 14. Qxd4 {[%clk 0:02:23]}  Bxd4 {[%clk 0:02:56]} 15. Bxc6 {[%clk 0:02:17]}  Rab8 {[%clk 0:02:55]} 16. Bg2 {[%clk 0:01:56]}  Be6 {[%clk 0:02:26]} 17. a4 {[%clk 0:01:28]}  Rfc8 {[%clk 0:02:16]} 18. a5 {[%clk 0:01:23]}  Bxb2 {[%clk 0:02:01]} 19. Rb1 {[%clk 0:01:16]}  Bc3 {[%clk 0:01:03]} 20. Bf4 {[%clk 0:00:35]}  Rxb1 {[%clk 0:01:03]} 21. Rxb1 {[%clk 0:00:36]}  Bxa5 {[%clk 0:01:04]} 22. Be3 {[%clk 0:00:32]}  Bb6 {[%clk 0:00:58]} 23. Bxb6 {[%clk 0:00:29]}  axb6 {[%clk 0:00:59]} 24. h4 {[%clk 0:00:19]}  Rb8 {[%clk 0:00:57]} 25. Bc6 {[%clk 0:00:17]}  Kg7 {[%clk 0:00:55]} 26. Kg2 {[%clk 0:00:12]}  Bc4 {[%clk 0:00:55]} 27. Kf3 {[%clk 0:00:11]}  Kf6 {[%clk 0:00:54]} 28. e3 {[%clk 0:00:07]}  Ke5 {[%clk 0:00:53]} 29. Rb4 {[%clk 0:00:03]}  Bd5+ {[%clk 0:00:50]} 30. Bxd5 {[%clk 0:00:01]}  Kxd5 {[%clk 0:00:51]} 31. h5 {[%clk 0:00:01]}  b5 {[%clk 0:00:51]} 32. Rb1 {[%clk 0:00:02]}  b4 {[%clk 0:00:51]} 33. h6 {[%clk 0:00:02]}  b3 {[%clk 0:00:51]} 34. Ke2 {[%clk 0:00:01]}  b2 {[%clk 0:00:50]} 35. Kd2 {[%clk 0:00:02]}  Ke4 {[%clk 0:00:50]} 36. Ke2 {[%clk 0:00:01]}  g5 {[%clk 0:00:48]} 37. f3+ {[%clk 0:00:02]}  Kf5 {[%clk 0:00:49]} 38. g4+ {[%clk 0:00:01]}  Kg6 {[%clk 0:00:49]} 39. f4 {[%clk 0:00:01]}  gxf4 {[%clk 0:00:49]} 40. exf4 {[%clk 0:00:02]}  Kxh6 {[%clk 0:00:50]} 41. Kd2 {[%clk 0:00:03]}  Kg6 {[%clk 0:00:48]} 42. Kc2 {[%clk 0:00:03]}  e6 {[%clk 0:00:44]} 43. Rxb2 {[%clk 0:00:03]}  Rxb2+ {[%clk 0:00:43]} 44. Kxb2 {[%clk 0:00:04]}  h5 {[%clk 0:00:44]} 45. f5+ {[%clk 0:00:01]}  exf5 {[%clk 0:00:44]} 46. gxh5+ {[%clk 0:00:01]}  Kxh5 {[%clk 0:00:43]} 47. Kc2 {[%clk 0:00:02]}  Kg4 {[%clk 0:00:44]} 48. Kd2 {[%clk 0:00:03]}  Kf3 {[%clk 0:00:44]} 49. Ke1 {[%clk 0:00:00]}  Kg2 {[%clk 0:00:45]} 0-1


[Site "https://www.chess.com"]

[Event "Titled Tuesday Blitz May 9 Early 2023"]
[White "Sieciechowicz, Marcin"]
[Black "Yosha_Iglesias"]
[WhiteFideId "1130170"]
[WhiteElo "2302"]
[BlackElo "2441"]
[Result "1-0"]
[Round "01"]
[TimeControl "180+2"]
[Date "2023.05.09"]
[WhiteClock "0:02:02"]
[BlackClock "0:00:31"]

1. d4 {[%clk 0:03:00]}  d5 {[%clk 0:02:58]} 2. Bf4 {[%clk 0:03:00]}  c5 {[%clk 0:02:55]} 3. e3 {[%clk 0:03:00]}  Nf6 {[%clk 0:02:54]} 4. c3 {[%clk 0:02:59]}  e6 {[%clk 0:02:49]} 5. Nf3 {[%clk 0:02:58]}  Bd6 {[%clk 0:02:47]} 6. Bg3 {[%clk 0:02:58]}  O-O {[%clk 0:02:46]} 7. Bd3 {[%clk 0:02:58]}  Qc7 {[%clk 0:02:44]} 8. Nbd2 {[%clk 0:02:57]}  Nbd7 {[%clk 0:02:43]} 9. O-O {[%clk 0:02:57]}  Bxg3 {[%clk 0:02:42]} 10. hxg3 {[%clk 0:02:57]}  e5 {[%clk 0:02:43]} 11. dxe5 {[%clk 0:02:57]}  Nxe5 {[%clk 0:02:43]} 12. Nxe5 {[%clk 0:02:58]}  Qxe5 {[%clk 0:02:43]} 13. Nf3 {[%clk 0:02:58]}  Qh5 {[%clk 0:02:41]} 14. c4 {[%clk 0:02:58]}  dxc4 {[%clk 0:02:36]} 15. Bxc4 {[%clk 0:02:59]}  Bg4 {[%clk 0:02:26]} 16. Be2 {[%clk 0:02:58]}  Rad8 {[%clk 0:02:20]} 17. Qc2 {[%clk 0:02:54]}  Rd6 {[%clk 0:01:42]} 18. Rfd1 {[%clk 0:02:52]}  Re6 {[%clk 0:01:42]} 19. a4 {[%clk 0:02:37]}  Ne4 {[%clk 0:01:38]} 20. a5 {[%clk 0:02:20]}  Rh6 {[%clk 0:01:26]} 21. Nh4 {[%clk 0:02:20]}  Bxe2 {[%clk 0:01:25]} 22. Re1 {[%clk 0:02:19]}  Nxg3 {[%clk 0:00:49]} 23. fxg3 {[%clk 0:02:17]}  Bg4 {[%clk 0:00:49]} 24. Qe4 {[%clk 0:02:03]}  g5 {[%clk 0:00:47]} 25. Nf3 {[%clk 0:02:03]}  Qh2+ {[%clk 0:00:31]} 26. Nxh2 {[%clk 0:02:02]} 1-0


[Site "https://www.chess.com"]

[Event "Titled Tuesday Blitz May 9 Early 2023"]
[White "Mackster23"]
[Black "Mekhitarian, Krikor Sevag"]
[BlackFideId "2107660"]
[WhiteElo "2440"]
[BlackElo "2604"]
[Result "0-1"]
[Round "01"]
[TimeControl "180+2"]
[Date "2023.05.09"]
[WhiteClock "0:00:54"]
[BlackClock "0:01:36"]

1. e4 {[%clk 0:03:00]}  e6 {[%clk 0:02:59]} 2. d4 {[%clk 0:03:00]}  d5 {[%clk 0:02:58]} 3. Nc3 {[%clk 0:03:01]}  Nf6 {[%clk 0:02:58]} 4. Bg5 {[%clk 0:03:00]}  dxe4 {[%clk 0:02:58]} 5. Nxe4 {[%clk 0:03:00]}  Be7 {[%clk 0:02:58]} 6. Bxf6 {[%clk 0:02:59]}  gxf6 {[%clk 0:02:59]} 7. Qd3 {[%clk 0:02:54]}  f5 {[%clk 0:02:52]} 8. Nc3 {[%clk 0:02:51]}  a6 {[%clk 0:02:49]} 9. O-O-O {[%clk 0:02:48]}  b5 {[%clk 0:02:49]} 10. Nf3 {[%clk 0:02:27]}  Bb7 {[%clk 0:02:44]} 11. Ne5 {[%clk 0:02:27]}  Nd7 {[%clk 0:02:39]} 12. Qg3 {[%clk 0:02:25]}  Bh4 {[%clk 0:02:26]} 13. Qg7 {[%clk 0:02:09]}  Qg5+ {[%clk 0:02:21]} 14. Qxg5 {[%clk 0:02:07]}  Bxg5+ {[%clk 0:02:22]} 15. Kb1 {[%clk 0:02:06]}  Nxe5 {[%clk 0:02:21]} 16. dxe5 {[%clk 0:02:07]}  Bf4 {[%clk 0:02:17]} 17. Re1 {[%clk 0:02:03]}  O-O-O {[%clk 0:02:17]} 18. a4 {[%clk 0:01:22]}  b4 {[%clk 0:02:11]} 19. Na2 {[%clk 0:01:22]}  a5 {[%clk 0:02:07]} 20. Nc1 {[%clk 0:01:21]}  Rhg8 {[%clk 0:01:40]} 21. Nd3 {[%clk 0:01:19]}  Bd2 {[%clk 0:01:40]} 22. Re2 {[%clk 0:01:18]}  Bh6 {[%clk 0:01:37]} 23. Rg1 {[%clk 0:01:09]}  b3 {[%clk 0:01:37]} 24. Nc5 {[%clk 0:00:54]}  Rd1# {[%clk 0:01:36]} 0-1


[Site "https://www.chess.com"]

[Event "Titled Tuesday Blitz May 9 Early 2023"]
[White "Remizov, Yaroslav"]
[Black "Ramirez Vido, Robert Yorisan"]
[WhiteFideId "34134015"]
[BlackFideId "3513823"]
[WhiteElo "2400"]
[BlackElo "2440"]
[Result "1/2-1/2"]
[Round "01"]
[TimeControl "180+2"]
[Date "2023.05.09"]
[WhiteClock "0:01:16"]
[BlackClock "0:00:26"]

1. e4 {[%clk 0:02:59]}  d6 {[%clk 0:02:56]} 2. d4 {[%clk 0:02:54]}  Nf6 {[%clk 0:02:55]} 3. Nc3 {[%clk 0:02:53]}  g6 {[%clk 0:02:53]} 4. g3 {[%clk 0:02:51]}  Bg7 {[%clk 0:02:51]} 5. Bg2 {[%clk 0:02:51]}  O-O {[%clk 0:02:48]} 6. Nge2 {[%clk 0:02:52]}  e5 {[%clk 0:02:48]} 7. O-O {[%clk 0:02:52]}  Nc6 {[%clk 0:02:47]} 8. h3 {[%clk 0:02:49]}  Bd7 {[%clk 0:02:43]} 9. Be3 {[%clk 0:02:47]}  exd4 {[%clk 0:02:42]} 10. Nxd4 {[%clk 0:02:47]}  Re8 {[%clk 0:02:42]} 11. Re1 {[%clk 0:02:46]}  a6 {[%clk 0:02:39]} 12. Kh2 {[%clk 0:02:43]}  Rb8 {[%clk 0:02:34]} 13. a4 {[%clk 0:02:34]}  Ne5 {[%clk 0:02:24]} 14. Qe2 {[%clk 0:02:30]}  c5 {[%clk 0:02:11]} 15. Nf3 {[%clk 0:02:23]}  b5 {[%clk 0:01:35]} 16. axb5 {[%clk 0:02:19]}  axb5 {[%clk 0:01:36]} 17. Nxe5 {[%clk 0:02:18]}  Rxe5 {[%clk 0:01:34]} 18. f4 {[%clk 0:02:15]}  Rh5 {[%clk 0:01:15]} 19. Bd2 {[%clk 0:01:38]}  b4 {[%clk 0:01:09]} 20. Nd1 {[%clk 0:01:36]}  Bg4 {[%clk 0:00:57]} 21. Qf1 {[%clk 0:01:36]}  Bxd1 {[%clk 0:00:33]} 22. Raxd1 {[%clk 0:01:32]}  Ng4+ {[%clk 0:00:33]} 23. Kh1 {[%clk 0:01:29]}  Bd4 {[%clk 0:00:32]} 24. c3 {[%clk 0:01:27]}  Nf2+ {[%clk 0:00:29]} 25. Kh2 {[%clk 0:01:25]}  Ng4+ {[%clk 0:00:28]} 26. Kh1 {[%clk 0:01:22]}  Nf2+ {[%clk 0:00:27]} 27. Kh2 {[%clk 0:01:19]}  Ng4+ {[%clk 0:00:26]} 28. Kh1 {[%clk 0:01:16]} 1/2-1/2


[Site "https://www.chess.com"]

[Event "Titled Tuesday Blitz May 9 Early 2023"]
[White "Koutsin"]
[Black "Kravtsiv, Martyn"]
[BlackFideId "14113147"]
[WhiteElo "2439"]
[BlackElo "2695"]
[Result "0-1"]
[Round "01"]
[TimeControl "180+2"]
[Date "2023.05.09"]
[WhiteClock "0:00:00"]
[BlackClock "0:00:36"]

1. d4 {[%clk 0:02:59]}  d5 {[%clk 0:02:59]} 2. c4 {[%clk 0:02:59]}  e6 {[%clk 0:02:59]} 3. Nc3 {[%clk 0:02:59]}  Bb4 {[%clk 0:02:59]} 4. Nf3 {[%clk 0:02:57]}  Nf6 {[%clk 0:02:57]} 5. cxd5 {[%clk 0:02:55]}  exd5 {[%clk 0:02:57]} 6. Qa4+ {[%clk 0:02:55]}  Nc6 {[%clk 0:02:56]} 7. Bg5 {[%clk 0:02:55]}  h6 {[%clk 0:02:55]} 8. Bxf6 {[%clk 0:02:53]}  Qxf6 {[%clk 0:02:56]} 9. e3 {[%clk 0:02:53]}  O-O {[%clk 0:02:49]} 10. Be2 {[%clk 0:02:53]}  Be6 {[%clk 0:02:47]} 11. O-O {[%clk 0:02:52]}  a6 {[%clk 0:02:46]} 12. Qc2 {[%clk 0:02:50]}  Rfe8 {[%clk 0:02:41]} 13. Rac1 {[%clk 0:02:47]}  Bd6 {[%clk 0:02:33]} 14. a3 {[%clk 0:02:45]}  Ne7 {[%clk 0:02:33]} 15. Na4 {[%clk 0:02:44]}  Ng6 {[%clk 0:02:31]} 16. Nc5 {[%clk 0:02:43]}  Bc8 {[%clk 0:02:32]} 17. Qb3 {[%clk 0:02:35]}  b6 {[%clk 0:02:31]} 18. Nd3 {[%clk 0:02:32]}  Be6 {[%clk 0:02:25]} 19. Qc2 {[%clk 0:02:26]}  a5 {[%clk 0:02:20]} 20. Rfe1 {[%clk 0:02:14]}  Bf5 {[%clk 0:02:20]} 21. Qc6 {[%clk 0:02:10]}  Be4 {[%clk 0:02:20]} 22. Qb5 {[%clk 0:01:45]}  Re6 {[%clk 0:02:13]} 23. Qb3 {[%clk 0:01:16]}  Rae8 {[%clk 0:02:10]} 24. Qd1 {[%clk 0:01:15]}  Qf5 {[%clk 0:01:53]} 25. Rc3 {[%clk 0:01:14]}  Rf6 {[%clk 0:01:52]} 26. Rf1 {[%clk 0:01:11]}  Kh8 {[%clk 0:01:39]} 27. Rc1 {[%clk 0:00:48]}  Bxf3 {[%clk 0:01:26]} 28. Bxf3 {[%clk 0:00:47]}  Nh4 {[%clk 0:01:27]} 29. Ne1 {[%clk 0:00:46]}  Rg6 {[%clk 0:01:03]} 30. Kh1 {[%clk 0:00:45]}  Qg5 {[%clk 0:01:02]} 31. g3 {[%clk 0:00:42]}  Nxf3 {[%clk 0:01:02]} 32. Nxf3 {[%clk 0:00:33]}  Qe7 {[%clk 0:01:02]} 33. Qd3 {[%clk 0:00:24]}  Rf6 {[%clk 0:01:02]} 34. Nd2 {[%clk 0:00:18]}  Qd7 {[%clk 0:01:02]} 35. Kg2 {[%clk 0:00:18]}  h5 {[%clk 0:01:01]} 36. h3 {[%clk 0:00:16]}  g6 {[%clk 0:00:58]} 37. Rce1 {[%clk 0:00:12]}  Rfe6 {[%clk 0:00:57]} 38. Nf3 {[%clk 0:00:10]}  Kg7 {[%clk 0:00:53]} 39. Re2 {[%clk 0:00:09]}  Qd8 {[%clk 0:00:50]} 40. Rfe1 {[%clk 0:00:10]}  Re4 {[%clk 0:00:45]} 41. Nd2 {[%clk 0:00:09]}  R4e6 {[%clk 0:00:43]} 42. Nf3 {[%clk 0:00:10]}  Be7 {[%clk 0:00:43]} 43. Ne5 {[%clk 0:00:09]}  Bf6 {[%clk 0:00:43]} 44. f4 {[%clk 0:00:08]}  c5 {[%clk 0:00:41]} 45. b3 {[%clk 0:00:07]}  Bxe5 {[%clk 0:00:37]} 46. fxe5 {[%clk 0:00:06]}  f6 {[%clk 0:00:37]} 47. exf6+ {[%clk 0:00:00]}  Rxf6 {[%clk 0:00:36]} 0-1


[Site "https://www.chess.com"]

[Event "Titled Tuesday Blitz May 9 Early 2023"]
[White "Seo, Jung Min"]
[Black "Arencibia Monduy, Antonio"]
[WhiteFideId "1734687"]
[BlackFideId "3507939"]
[WhiteElo "2468"]
[BlackElo "2439"]
[Result "1-0"]
[Round "01"]
[TimeControl "180+2"]
[Date "2023.05.09"]
[WhiteClock "0:01:30"]
[BlackClock "0:00:00"]

1. e4 {[%clk 0:02:59]}  e6 {[%clk 0:02:59]} 2. d4 {[%clk 0:02:58]}  d5 {[%clk 0:03:00]} 3. Nc3 {[%clk 0:02:55]}  dxe4 {[%clk 0:03:00]} 4. Nxe4 {[%clk 0:02:54]}  Nd7 {[%clk 0:03:00]} 5. Nf3 {[%clk 0:02:51]}  Ngf6 {[%clk 0:02:59]} 6. Nxf6+ {[%clk 0:02:51]}  Nxf6 {[%clk 0:02:59]} 7. g3 {[%clk 0:02:51]}  b6 {[%clk 0:02:54]} 8. Bb5+ {[%clk 0:02:49]}  Bd7 {[%clk 0:02:53]} 9. a4 {[%clk 0:02:48]}  Bd6 {[%clk 0:02:50]} 10. O-O {[%clk 0:02:47]}  O-O {[%clk 0:02:50]} 11. Be2 {[%clk 0:02:45]}  Bc6 {[%clk 0:02:50]} 12. Ne5 {[%clk 0:02:45]}  Bb7 {[%clk 0:02:40]} 13. Bg5 {[%clk 0:02:44]}  Be7 {[%clk 0:02:12]} 14. c3 {[%clk 0:02:37]}  h6 {[%clk 0:02:12]} 15. Be3 {[%clk 0:02:34]}  c5 {[%clk 0:01:43]} 16. dxc5 {[%clk 0:02:28]}  bxc5 {[%clk 0:01:40]} 17. Qxd8 {[%clk 0:02:24]}  Rfxd8 {[%clk 0:01:39]} 18. a5 {[%clk 0:02:23]}  Bd5 {[%clk 0:01:06]} 19. a6 {[%clk 0:02:19]}  Rab8 {[%clk 0:01:05]} 20. b4 {[%clk 0:02:14]}  cxb4 {[%clk 0:00:59]} 21. cxb4 {[%clk 0:02:14]}  Bxb4 {[%clk 0:00:52]} 22. Bxa7 {[%clk 0:02:14]}  Ra8 {[%clk 0:00:53]} 23. Bd4 {[%clk 0:02:13]}  Be4 {[%clk 0:00:27]} 24. Nf3 {[%clk 0:02:12]}  Rd6 {[%clk 0:00:16]} 25. Be5 {[%clk 0:02:03]}  Rd5 {[%clk 0:00:10]} 26. Bf4 {[%clk 0:01:57]}  g5 {[%clk 0:00:04]} 27. Be3 {[%clk 0:01:50]}  Ng4 {[%clk 0:00:03]} 28. Bb6 {[%clk 0:01:42]}  Rd6 {[%clk 0:00:03]} 29. Ba5 {[%clk 0:01:35]}  Bxa5 {[%clk 0:00:02]} 30. Rxa5 {[%clk 0:01:35]}  Rc6 {[%clk 0:00:01]} 31. Nd4 {[%clk 0:01:32]}  Rc4 {[%clk 0:00:01]} 32. Bxc4 {[%clk 0:01:32]}  Ne5 {[%clk 0:00:00]} 33. Rxe5 {[%clk 0:01:30]} 1-0


[Site "https://www.chess.com"]

[Event "Titled Tuesday Blitz May 9 Early 2023"]
[White "Aakanksha Hagawane"]
[Black "Perez Ponsa, Federico"]
[WhiteFideId "25014510"]
[BlackFideId "117927"]
[WhiteElo "2081"]
[BlackElo "2590"]
[Result "0-1"]
[Round "01"]
[TimeControl "180+2"]
[Date "2023.05.09"]
[WhiteClock "0:00:11"]
[BlackClock "0:00:15"]

1. e4 {[%clk 0:02:59]}  c5 {[%clk 0:02:50]} 2. Nf3 {[%clk 0:02:59]}  d6 {[%clk 0:02:50]} 3. Bb5+ {[%clk 0:02:57]}  Nd7 {[%clk 0:02:50]} 4. O-O {[%clk 0:02:56]}  a6 {[%clk 0:02:49]} 5. Bd3 {[%clk 0:02:55]}  Ngf6 {[%clk 0:02:47]} 6. c3 {[%clk 0:02:55]}  b5 {[%clk 0:02:45]} 7. Bc2 {[%clk 0:02:54]}  Bb7 {[%clk 0:02:44]} 8. Re1 {[%clk 0:02:54]}  c4 {[%clk 0:02:45]} 9. b3 {[%clk 0:02:52]}  e6 {[%clk 0:02:37]} 10. bxc4 {[%clk 0:02:51]}  bxc4 {[%clk 0:02:38]} 11. Na3 {[%clk 0:02:51]}  Qc7 {[%clk 0:02:38]} 12. Rb1 {[%clk 0:02:50]}  d5 {[%clk 0:02:31]} 13. exd5 {[%clk 0:02:49]}  Bxd5 {[%clk 0:02:31]} 14. d3 {[%clk 0:02:47]}  cxd3 {[%clk 0:02:23]} 15. Qxd3 {[%clk 0:02:47]}  Nc5 {[%clk 0:02:17]} 16. Qe2 {[%clk 0:02:28]}  Be7 {[%clk 0:02:05]} 17. c4 {[%clk 0:02:06]}  Bb7 {[%clk 0:01:52]} 18. Bb2 {[%clk 0:01:54]}  O-O {[%clk 0:01:36]} 19. Ne5 {[%clk 0:01:48]}  Rad8 {[%clk 0:01:21]} 20. Rbd1 {[%clk 0:01:38]}  Rxd1 {[%clk 0:01:17]} 21. Rxd1 {[%clk 0:01:37]}  Rd8 {[%clk 0:01:18]} 22. Nb1 {[%clk 0:01:34]}  Rxd1+ {[%clk 0:01:05]} 23. Bxd1 {[%clk 0:01:22]}  Nfe4 {[%clk 0:00:44]} 24. f3 {[%clk 0:01:08]}  Bd6 {[%clk 0:00:34]} 25. Ng4 {[%clk 0:00:53]}  h5 {[%clk 0:00:22]} 26. fxe4 {[%clk 0:00:50]}  hxg4 {[%clk 0:00:22]} 27. e5 {[%clk 0:00:32]}  Be7 {[%clk 0:00:22]} 28. Bd4 {[%clk 0:00:27]}  Qd8 {[%clk 0:00:18]} 29. Qxg4 {[%clk 0:00:25]}  Ne4 {[%clk 0:00:16]} 30. Be3 {[%clk 0:00:22]}  Qd3 {[%clk 0:00:16]} 31. Bh6 {[%clk 0:00:18]}  Bc5+ {[%clk 0:00:14]} 32. Kh1 {[%clk 0:00:11]}  Nf2+ {[%clk 0:00:15]} 0-1


[Site "https://www.chess.com"]

[Event "Titled Tuesday Blitz May 9 Early 2023"]
[White "Bazeev, German"]
[Black "Spaqi, Wilson"]
[WhiteFideId "24119350"]
[BlackFideId "2053888"]
[WhiteElo "2466"]
[BlackElo "2439"]
[Result "1-0"]
[Round "01"]
[TimeControl "180+2"]
[Date "2023.05.09"]
[WhiteClock "0:01:02"]
[BlackClock "0:01:15"]

1. c4 {[%clk 0:02:56]}  c6 {[%clk 0:03:00]} 2. d4 {[%clk 0:02:52]}  d5 {[%clk 0:03:00]} 3. Nf3 {[%clk 0:02:53]}  Nf6 {[%clk 0:03:00]} 4. Nc3 {[%clk 0:02:54]}  Bf5 {[%clk 0:03:00]} 5. Qb3 {[%clk 0:02:31]}  Qb6 {[%clk 0:02:57]} 6. c5 {[%clk 0:02:31]}  Qc7 {[%clk 0:02:56]} 7. g3 {[%clk 0:02:26]}  Nbd7 {[%clk 0:02:52]} 8. Bf4 {[%clk 0:02:27]}  Qc8 {[%clk 0:02:52]} 9. Rc1 {[%clk 0:02:26]}  e6 {[%clk 0:02:51]} 10. Bg2 {[%clk 0:02:26]}  Be7 {[%clk 0:02:51]} 11. O-O {[%clk 0:02:24]}  h6 {[%clk 0:02:50]} 12. Qd1 {[%clk 0:02:15]}  Ne4 {[%clk 0:02:45]} 13. Na4 {[%clk 0:02:03]}  O-O {[%clk 0:02:41]} 14. h4 {[%clk 0:01:56]}  Re8 {[%clk 0:02:38]} 15. a3 {[%clk 0:01:52]}  Bd8 {[%clk 0:02:26]} 16. Nd2 {[%clk 0:01:48]}  Nxd2 {[%clk 0:02:25]} 17. Qxd2 {[%clk 0:01:49]}  Bc7 {[%clk 0:02:25]} 18. Rfe1 {[%clk 0:01:43]}  e5 {[%clk 0:02:22]} 19. Be3 {[%clk 0:01:38]}  exd4 {[%clk 0:02:17]} 20. Bxd4 {[%clk 0:01:39]}  Be5 {[%clk 0:02:17]} 21. e3 {[%clk 0:01:37]}  Bxd4 {[%clk 0:02:13]} 22. exd4 {[%clk 0:01:38]}  Nf6 {[%clk 0:02:14]} 23. Nc3 {[%clk 0:01:37]}  Qd7 {[%clk 0:02:11]} 24. Rxe8+ {[%clk 0:01:37]}  Rxe8 {[%clk 0:02:11]} 25. Re1 {[%clk 0:01:38]}  Rxe1+ {[%clk 0:02:08]} 26. Qxe1 {[%clk 0:01:39]}  Qe6 {[%clk 0:02:08]} 27. Qxe6 {[%clk 0:01:37]}  Bxe6 {[%clk 0:02:09]} 28. f3 {[%clk 0:01:36]}  g5 {[%clk 0:02:05]} 29. hxg5 {[%clk 0:01:36]}  hxg5 {[%clk 0:02:05]} 30. g4 {[%clk 0:01:36]}  Nh7 {[%clk 0:02:03]} 31. Kf2 {[%clk 0:01:29]}  f5 {[%clk 0:02:03]} 32. gxf5 {[%clk 0:01:29]}  Bxf5 {[%clk 0:02:04]} 33. b4 {[%clk 0:01:29]}  a6 {[%clk 0:02:01]} 34. a4 {[%clk 0:01:28]}  Kf7 {[%clk 0:02:01]} 35. b5 {[%clk 0:01:28]}  axb5 {[%clk 0:02:01]} 36. axb5 {[%clk 0:01:29]}  Nf6 {[%clk 0:01:59]} 37. b6 {[%clk 0:01:26]}  Nh5 {[%clk 0:01:55]} 38. Ke3 {[%clk 0:01:25]}  Ke7 {[%clk 0:01:48]} 39. Bf1 {[%clk 0:01:25]}  Kd7 {[%clk 0:01:46]} 40. Nd1 {[%clk 0:01:21]}  g4 {[%clk 0:01:44]} 41. fxg4 {[%clk 0:01:20]}  Bxg4 {[%clk 0:01:45]} 42. Nf2 {[%clk 0:01:20]}  Bf5 {[%clk 0:01:45]} 43. Be2 {[%clk 0:01:20]}  Nf6 {[%clk 0:01:39]} 44. Kf4 {[%clk 0:01:19]}  Bc2 {[%clk 0:01:37]} 45. Bf3 {[%clk 0:01:17]}  Ke6 {[%clk 0:01:31]} 46. Bg2 {[%clk 0:01:15]}  Nh5+ {[%clk 0:01:29]} 47. Kg5 {[%clk 0:01:14]}  Nf6 {[%clk 0:01:30]} 48. Bh3+ {[%clk 0:01:14]}  Ke7 {[%clk 0:01:28]} 49. Bc8 {[%clk 0:01:14]}  Ne4+ {[%clk 0:01:29]} 50. Nxe4 {[%clk 0:01:14]}  dxe4 {[%clk 0:01:29]} 51. Kf4 {[%clk 0:01:12]}  Kd8 {[%clk 0:01:24]} 52. Bxb7 {[%clk 0:01:06]}  Kd7 {[%clk 0:01:24]} 53. Ba6 {[%clk 0:01:06]}  Kd8 {[%clk 0:01:25]} 54. Bf1 {[%clk 0:01:01]}  Kd7 {[%clk 0:01:26]} 55. Bh3+ {[%clk 0:01:00]}  Kd8 {[%clk 0:01:25]} 56. Bg2 {[%clk 0:01:01]}  Bd3 {[%clk 0:01:20]} 57. Bxe4 {[%clk 0:01:01]}  Bb5 {[%clk 0:01:18]} 58. Ke5 {[%clk 0:01:01]}  Kd7 {[%clk 0:01:18]} 59. Bf5+ {[%clk 0:01:01]}  Kd8 {[%clk 0:01:15]} 60. Kd6 {[%clk 0:01:02]} 1-0


[Site "https://www.chess.com"]